Workbook

Sheet 1M-36458
B2: 1M-36458 | D2: Rates-Based Panel Contract for Roadway Related Construction Works to be used As-and-When-Required, for a period of 36 Months (CIDB Grades 4, 5 and 6)
G4: BILL of QUANTITIES
B7: 1 | C7: PRELIMINARY AND GENERAL ITEMS | J7: =J47 -> 0
C8: 0102 | D8: C1.2 GENERAL REQUIREMENTS AND PROVISIONS | H8: 40 | I8: =J48 -> 0
C10: 0105 | D10: C1.5 ACCOMMODATION OF TRAFFIC | H10: 20 | I10: =J157 -> 0
B11: 2 | C11: SITE CLEARANCE | J11: =J190 -> 0
C12: 0106 | D12: C1.6 CLEARING AND GRUBBING | H12: 13 | I12: =J191 -> 0
B13: 3 | C13: SERVICES
C14: 0201 | D14: C2.1 GEN REQMENTS AND TRENCHING SERVICE | H14: 10 | I14: =J211 -> R1,160,000.00
B15: 4 | C15: DRAINAGE | J15: =J240 -> 0
C16: 0302 | D16: C3.2 CULVERTS | H16: 36 | I16: =J241 -> 0
C17: 0303 | D17: C3.3 CONCRETE KERBING AND CHANNELING | H17: 14 | I17: =J306 -> 0
B18: 5 | C18: EARTHWORKS
C19: 0402 | D19: C4.2 CUT MATERIALS | H19: 8 | I19: =J324 -> R50,000.00
C20: 0403 | D20: C4.3 EXISTING ROAD MATERIALS | H20: 17 | I20: =J334 -> 0
C21: 0404 | D21: C4.4 COMMERCIAL MATERIALS | H21: 5 | I21: =J353 -> 0
B22: 6 | C22: LAYERWORKS | J22: =J359 -> 0
C23: 0501 | D23: C5.1 ROADBED | H23: 9 | I23: =J360 -> 0
C24: 0502 | D24: C5.2 FILL | H24: 7 | I24: =J371 -> 0
C25: 0503 | D25: C5.3 ROAD PAVEMENT LAYERS | H25: 10 | I25: =J379 -> 0
C26: 0504 | D26: C5.4 STABILISATION | H26: 5 | I26: =J392 -> 0
C28: 0901 | D28: C9.1 ASPHALT LAYERS | H28: 14 | I28: =J398 -> 0
B29: 7 | C29: ANCILLARY ROAD WORKS
C30: 1104 | D30: C11.4 ROAD RESTRAINT SYSTEMS | H30: 9 | I30: =J419 -> 0
C31: 1105 | D31: C11.5 FENCING | H31: 5 | I31: =J429 -> 0
C32: 1106 | D32: C11.6 ROAD SIGNS | H32: 10 | I32: =J436 -> 0
C33: 1107 | D33: C11.7 ROAD MARKINGS AND ROAD STUDS | H33: 9 | I33: =J447 -> 0
C34: 1108 | D34: C11.8 LANDSCAPING AND PLANTING PLANTS | H34: 7 | I34: =J461 -> 0
C35: 1109 | D35: C11.9 FINISHING ROAD AND ROAD RESERVE | H35: 7 | I35: =J469 -> R250,000.00
C36: 1206 | D36: C12.6 MECH STABILISED FILL AND GABIONS | H36: 16 | I36: =J479 -> 0
I38: Sub-Total:
I40: VAT @ 15%: | J40: =J38*15/100 -> 0
I42: TOTAL CARRIED TO FORM OF OFFER (C1.1): | J42: =J38+J40 -> 0
B45: Section | C45: Chapter | D45: Item# | E45: Clause | F45: Unit | G45: Description | H45: Est. Qty. | I45: Rate | J45: Value
B47: 1 | C47: PRELIMINARY AND GENERAL ITEMS | I47: SECTION TOTAL: | J47: =J48+J157 -> 0
B48: 1 | C48: 0102 | D48: C1.2 GENERAL REQUIREMENTS AND PROVISIONS | H48: 40 | I48: Chapter Total: | J48: =SUM(J49:J156) -> 0
G49: C1.3.1.1: Fixed Obligations per Work Package Order
B50: 1 | C50: 0102 | D50: 1 | E50: PS.C1.3.1.1 PS.C1.3.1.2 | F50: PC Sum | G50: Where Work Package Order is <R1m | H50: 1,000,000 | I50: 1 | J50: =H50*I50 -> R1,000,000.00
B51: 1 | C51: 0102 | D51: 2 | E51: PS.C1.3.1.1 PS.C1.3.1.2 | F51: % | G51: Enter % of Work Package Order | H51: 1,000,000 | J51: =H51*I51/100 -> 0
B52: 1 | C52: 0102 | D52: 3 | E52: PS.C1.3.1.1 PS.C1.3.1.2 | F52: PC Sum | G52: Where Work Package Order is >R1m and <R3m | H52: 3,000,000 | I52: 1 | J52: =H52*I52 -> R3,000,000.00
B53: 1 | C53: 0102 | D53: 4 | E53: PS.C1.3.1.1 PS.C1.3.1.2 | F53: % | G53: Enter % of Work Package Order | H53: 3,000,000 | J53: =H53*I53/100 -> 0
B54: 1 | C54: 0102 | D54: 5 | E54: PS.C1.3.1.1 PS.C1.3.1.2 | F54: PC Sum | G54: Where Work Package Order is >R3m and <R6m | H54: 6,000,000 | I54: 1 | J54: =H54*I54 -> R6,000,000.00
B55: 1 | C55: 0102 | D55: 6 | E55: PS.C1.3.1.1 PS.C1.3.1.2 | F55: % | G55: Enter % of Work Package Order | H55: 6,000,000 | J55: =H55*I55/100 -> 0
B56: 1 | C56: 0102 | D56: 7 | E56: PS.C1.3.1.1 PS.C1.3.1.2 | F56: PC Sum | G56: Where Work Package Order is >R6m and <R10m | H56: 10,000,000 | I56: 1 | J56: =H56*I56 -> R10,000,000.00
B57: 1 | C57: 0102 | D57: 8 | E57: PS.C1.3.1.1 PS.C1.3.1.2 | F57: % | G57: Enter % of Work Package Order | H57: 10,000,000 | J57: =H57*I57/100 -> 0
B58: 1 | C58: 0102 | D58: 9 | E58: PS.C1.3.1.1 PS.C1.3.1.2 | F58: PC Sum | G58: Where Work Package Order is >R10m | H58: 20,000,000 | I58: 1 | J58: =H58*I58 -> R20,000,000.00
B59: 1 | C59: 0102 | D59: 10 | E59: PS.C1.3.1.1 PS.C1.3.1.2 | F59: % | G59: Enter % of Work Package Order | H59: 20,000,000 | J59: =H59*I59/100 -> 0
G60: C1.3.1.3: Time-related Obligations per Work Package Order
B61: 1 | C61: 0102 | D61: 11 | E61: PS.C1.3.1.1 PS.C1.3.1.2 | F61: PC Sum | G61: Where Work Package Order is <R1m | H61: 1,000,000 | I61: 1 | J61: =H61*I61 -> R1,000,000.00
B62: 1 | C62: 0102 | D62: 12 | E62: PS.C1.3.1.1 PS.C1.3.1.2 | F62: % | G62: Enter % of Work Package Order | H62: 1,000,000 | J62: =H62*I62/100 -> 0
B63: 1 | C63: 0102 | D63: 13 | E63: PS.C1.3.1.1 PS.C1.3.1.2 | F63: PC Sum | G63: Where Work Package Order is >R1m and <R3m | H63: 3,000,000 | I63: 1 | J63: =H63*I63 -> R3,000,000.00
B64: 1 | C64: 0102 | D64: 14 | E64: PS.C1.3.1.1 PS.C1.3.1.2 | F64: % | G64: Enter % of Work Package Order | H64: 3,000,000 | J64: =H64*I64/100 -> 0
B65: 1 | C65: 0102 | D65: 15 | E65: PS.C1.3.1.1 PS.C1.3.1.2 | F65: PC Sum | G65: Where Work Package Order is >R3m and <R6m | H65: 6,000,000 | I65: 1 | J65: =H65*I65 -> R6,000,000.00
B66: 1 | C66: 0102 | D66: 16 | E66: PS.C1.3.1.1 PS.C1.3.1.2 | F66: % | G66: Enter % of Work Package Order | H66: 6,000,000 | J66: =H66*I66/100 -> 0
B67: 1 | C67: 0102 | D67: 17 | E67: PS.C1.3.1.1 PS.C1.3.1.2 | F67: PC Sum | G67: Where Work Package Order is >R6m and <R10m | H67: 10,000,000 | I67: 1 | J67: =H67*I67 -> R10,000,000.00
B68: 1 | C68: 0102 | D68: 18 | E68: PS.C1.3.1.1 PS.C1.3.1.2 | F68: % | G68: Enter % of Work Package Order | H68: 10,000,000 | J68: =H68*I68/100 -> 0
B69: 1 | C69: 0102 | D69: 19 | E69: PS.C1.3.1.1 PS.C1.3.1.2 | F69: PC Sum | G69: Where Work Package Order is >R10m | H69: 20,000,000 | I69: 1 | J69: =H69*I69 -> R20,000,000.00
B70: 1 | C70: 0102 | D70: 20 | E70: PS.C1.3.1.1 PS.C1.3.1.2 | F70: % | G70: Enter % of Work Package Order | H70: 20,000,000 | J70: =H70*I70/100 -> 0
G71: PS.9: Environmental Management: Monitoring of compliance with and reporting on the EMP per Work Package Order
B72: 1 | C72: 0102 | D72: 21 | E72: C1.2.1.1 | F72: PC Sum | G72: Where Work Package Order is <R1m | H72: 1,000,000 | I72: 1 | J72: =H72*I72 -> R1,000,000.00
B73: 1 | C73: 0102 | D73: 22 | E73: C1.2.1.1 | F73: % | G73: Enter % of Work Package Order | H73: 1,000,000 | J73: =H73*I73/100 -> 0
B74: 1 | C74: 0102 | D74: 23 | E74: C1.2.1.1 | F74: PC Sum | G74: Where Work Package Order is >R1m and <R3m | H74: 3,000,000 | I74: 1 | J74: =H74*I74 -> R3,000,000.00
B75: 1 | C75: 0102 | D75: 24 | E75: C1.2.1.1 | F75: % | G75: Enter % of Work Package Order | H75: 3,000,000 | J75: =H75*I75/100 -> 0
B76: 1 | C76: 0102 | D76: 25 | E76: C1.2.1.1 | F76: PC Sum | G76: Where Work Package Order is >R3m and <R6m | H76: 6,000,000 | I76: 1 | J76: =H76*I76 -> R6,000,000.00
B77: 1 | C77: 0102 | D77: 26 | E77: C1.2.1.1 | F77: % | G77: Enter % of Work Package Order | H77: 6,000,000 | J77: =H77*I77/100 -> 0
B78: 1 | C78: 0102 | D78: 27 | E78: C1.2.1.1 | F78: PC Sum | G78: Where Work Package Order is >R6m and <R10m | H78: 10,000,000 | I78: 1 | J78: =H78*I78 -> R10,000,000.00
B79: 1 | C79: 0102 | D79: 28 | E79: C1.2.1.1 | F79: % | G79: Enter % of Work Package Order | H79: 10,000,000 | J79: =H79*I79/100 -> 0
B80: 1 | C80: 0102 | D80: 29 | E80: C1.2.1.1 | F80: PC Sum | G80: Where Work Package Order is >R10m | H80: 20,000,000 | I80: 1 | J80: =H80*I80 -> R20,000,000.00
B81: 1 | C81: 0102 | D81: 30 | E81: C1.2.1.1 | F81: % | G81: Enter % of Work Package Order | H81: 20,000,000 | J81: =H81*I81/100 -> 0
B82: 1 | C82: 0102 | D82: 31 | E82: C1.2.1.1 | F82: months | G82: Dedicated environmental officer per Work Package Order | H82: 12 | J82: =H82*I82 -> 0
G83: PS.14: Liasing, coordinating and mentoring CPG Sub-contractors per Work Package Order
B84: 1 | C84: 0102 | D84: 32 | E84: C1.3.1.1 | F84: sum | G84: Where Work Package Order is <R1m | H84: 1 | J84: =H84*I84 -> 0
B85: 1 | C85: 0102 | D85: 33 | E85: C1.3.1.1 | F85: sum | G85: Where Work Package Order is >R1m and <R3m | H85: 1 | J85: =H85*I85 -> 0
B86: 1 | C86: 0102 | D86: 34 | E86: C1.3.1.1 | F86: sum | G86: Where Work Package Order is >R3m and <R6m | H86: 1 | J86: =H86*I86 -> 0
B87: 1 | C87: 0102 | D87: 35 | E87: C1.3.1.1 | F87: sum | G87: Where Work Package Order is >R6m and <R10m | H87: 1 | J87: =H87*I87 -> 0
B88: 1 | C88: 0102 | D88: 36 | E88: C1.3.1.1 | F88: sum | G88: Where Work Package Order is >R10m | H88: 1 | J88: =H88*I88 -> 0
G89: PS.12.4: Submission of As-Built Data per Work Package Order
B90: 1 | C90: 0102 | D90: 37 | E90: C1.3.1.1 | F90: sum | G90: Where Work Package Order is <R1m | H90: 1 | J90: =H90*I90 -> 0
B91: 1 | C91: 0102 | D91: 38 | E91: C1.3.1.1 | F91: sum | G91: Where Work Package Order is >R1m and <R3m | H91: 1 | J91: =H91*I91 -> 0
B92: 1 | C92: 0102 | D92: 39 | E92: C1.3.1.1 | F92: sum | G92: Where Work Package Order is >R3m and <R6m | H92: 1 | J92: =H92*I92 -> 0
B93: 1 | C93: 0102 | D93: 40 | E93: C1.3.1.1 | F93: sum | G93: Where Work Package Order is >R6m and <R10m | H93: 1 | J93: =H93*I93 -> 0
B94: 1 | C94: 0102 | D94: 41 | E94: C1.3.1.1 | F94: sum | G94: Where Work Package Order is >R10m | H94: 1 | J94: =H94*I94 -> 0
G95: PS.10: Health and Safety Plan and Implementation of Health and Safety Plan per Work Package Order
B96: 1 | C96: 0102 | D96: 42 | E96: C1.2.5.1 | F96: PC Sum | G96: Where Work Package Order is <R1m | H96: 1,000,000 | I96: 1 | J96: =H96*I96 -> R1,000,000.00
B97: 1 | C97: 0102 | D97: 43 | E97: C1.2.5.1 | F97: % | G97: Enter % of Work Package Order | H97: 1,000,000 | J97: =H97*I97/100 -> 0
B98: 1 | C98: 0102 | D98: 44 | E98: C1.2.5.1 | F98: PC Sum | G98: Where Work Package Order is >R1m and <R3m | H98: 3,000,000 | I98: 1 | J98: =H98*I98 -> R3,000,000.00
B99: 1 | C99: 0102 | D99: 45 | E99: C1.2.5.1 | F99: % | G99: Enter % of Work Package Order | H99: 3,000,000 | J99: =H99*I99/100 -> 0
B100: 1 | C100: 0102 | D100: 46 | E100: C1.2.5.1 | F100: PC Sum | G100: Where Work Package Order is >R3m and <R6m | H100: 6,000,000 | I100: 1 | J100: =H100*I100 -> R6,000,000.00
B101: 1 | C101: 0102 | D101: 47 | E101: C1.2.5.1 | F101: % | G101: Enter % of Work Package Order | H101: 6,000,000 | J101: =H101*I101/100 -> 0
B102: 1 | C102: 0102 | D102: 48 | E102: C1.2.5.1 | F102: PC Sum | G102: Where Work Package Order is >R6m and <R10m | H102: 10,000,000 | I102: 1 | J102: =H102*I102 -> R10,000,000.00
B103: 1 | C103: 0102 | D103: 49 | E103: C1.2.5.1 | F103: % | G103: Enter % of Work Package Order | H103: 10,000,000 | J103: =H103*I103/100 -> 0
B104: 1 | C104: 0102 | D104: 50 | E104: C1.2.5.1 | F104: PC Sum | G104: Where Work Package Order is >R10m | H104: 20,000,000 | I104: 1 | J104: =H104*I104 -> R20,000,000.00
B105: 1 | C105: 0102 | D105: 51 | E105: C1.2.5.1 | F105: % | G105: Enter % of Work Package Order | H105: 20,000,000 | J105: =H105*I105/100 -> 0
G106: Programming and Reporting Per Work Package Order: Where Work Package Order is <R6m
B107: 1 | C107: 0102 | D107: 52 | E107: C1.2.1.1 PS.1 | F107: Lump sum | G107: Submission of a Scheme 1 Programme | H107: 1 | J107: =H107*I107 -> 0
B108: 1 | C108: 0102 | D108: 53 | E108: C1.2.1.1 PS.1 | F108: months | G108: Reviewing and updating a Scheme 1 Programme | H108: 12 | J108: =H108*I108 -> 0
G109: Programming and Reporting Per Work Package Order: Where Work Package Order is >R6m
B110: 1 | C110: 0102 | D110: 54 | E110: C1.2.2.4 PS.1 | F110: Lump sum | G110: Submission of a Scheme 2 Full Programme | H110: 1 | J110: =H110*I110 -> 0
B111: 1 | C111: 0102 | D111: 55 | E111: C1.2.2.5 PS.1 | F111: months | G111: Reviewing and updating a Scheme 2 programme every month | H111: 12 | J111: =H111*I111 -> 0
G112: PS.14: Stakeholder Management & Liaison per Work Package Order
B113: 1 | C113: 0102 | D113: 56 | E113: C1.2.4 | F113: PC Sum | G113: Where Work Package Order is <R6m | H113: 6,000,000 | I113: 1 | J113: =H113*I113 -> R6,000,000.00
B114: 1 | C114: 0102 | D114: 57 | E114: C1.2.4 | F114: % | G114: Enter % of Work Package Order | H114: 6,000,000 | J114: =H114*I114/100 -> 0
B115: 1 | C115: 0102 | D115: 58 | E115: C1.2.4 | F115: PC Sum | G115: Where Work Package Order is >R6m | H115: 10,000,000 | I115: 1 | J115: =H115*I115 -> R10,000,000.00
B116: 1 | C116: 0102 | D116: 59 | E116: C1.2.4 | F116: % | G116: Enter % of Work Package Order | H116: 10,000,000 | J116: =H116*I116/100 -> 0
G117: Community Liaison Officer
B118: 1 | C118: 0102 | D118: 60 | E118: PS.11 | F118: PC Sum | G118: Allow for CLO to be appointed per Work Package Order | H118: 100,000 | I118: 1 | J118: =H118*I118 -> R100,000.00
B119: 1 | C119: 0102 | D119: 61 | E119: PS.11 | F119: % | G119: Handling costs and profit in respect of item above | H119: 100,000 | J119: =H119*I119/100 -> 0
G120: Provision of security on site to guard against any disruption of the works throughout the duration of each Work Package Order
B121: 1 | C121: 0102 | D121: 62 | E121: PS.11.4 | F121: PC Sum | G121: Where Work Package Order is <R1m | H121: 1,000,000 | I121: 1 | J121: =H121*I121 -> R1,000,000.00
B122: 1 | C122: 0102 | D122: 63 | E122: PS.11.4 | F122: % | G122: Enter % of Work Package Order | H122: 1,000,000 | J122: =H122*I122/100 -> 0
B123: 1 | C123: 0102 | D123: 64 | E123: PS.11.4 | F123: PC Sum | G123: Where Work Package Order is >R1m and <R3m | H123: 3,000,000 | I123: 1 | J123: =H123*I123 -> R3,000,000.00
B124: 1 | C124: 0102 | D124: 65 | E124: PS.11.4 | F124: % | G124: Enter % of Work Package Order | H124: 3,000,000 | J124: =H124*I124/100 -> 0
B125: 1 | C125: 0102 | D125: 66 | E125: PS.11.4 | F125: PC Sum | G125: Where Work Package Order is >R3m and <R6m | H125: 6,000,000 | I125: 1 | J125: =H125*I125 -> R6,000,000.00
B126: 1 | C126: 0102 | D126: 67 | E126: PS.11.4 | F126: % | G126: Enter % of Work Package Order | H126: 6,000,000 | J126: =H126*I126/100 -> 0
B127: 1 | C127: 0102 | D127: 68 | E127: PS.11.4 | F127: PC Sum | G127: Where Work Package Order is >R6m and <R10m | H127: 10,000,000 | I127: 1 | J127: =H127*I127 -> R10,000,000.00
B128: 1 | C128: 0102 | D128: 69 | E128: PS.11.4 | F128: % | G128: Enter % of Work Package Order | H128: 10,000,000 | J128: =H128*I128/100 -> 0
B129: 1 | C129: 0102 | D129: 70 | E129: PS.11.4 | F129: PC Sum | G129: Where Work Package Order is >R10m | H129: 20,000,000 | I129: 1 | J129: =H129*I129 -> R20,000,000.00
B130: 1 | C130: 0102 | D130: 71 | E130: PS.11.4 | F130: % | G130: Enter % of Work Package Order | H130: 20,000,000 | J130: =H130*I130/100 -> 0
B131: 1 | C131: 0102 | D131: 72 | E131: C1.3.2 PS.C1.3.2 | F131: no. | G131: Contract sign boards | H131: 1 | J131: =H131*I131 -> 0
G132: Routine road maintenance of existing public roads within the Site of the Works or other public roads outside the Site of the Works which are used as detours
B133: 1 | C133: 0102 | D133: 73 | E133: C1.2.3.1 PS.12.1 | F133: m2 | G133: Grass cutting | H133: 5,000 | J133: =H133*I133 -> 0
B134: 1 | C134: 0102 | D134: 74 | E134: C1.2.3.2 PS.12.1 | F134: m | G134: Drain cleaning | H134: 250 | J134: 0
B135: 1 | C135: 0102 | D135: 75 | E135: C1.2.3.3 PS.12.1 | F135: m3 | G135: Cleaning out culverts | H135: 25 | J135: 0
B136: 1 | C136: 0102 | D136: 76 | E136: C1.2.3.7 PS.12.1 | F136: m2 | G136: Base and/or surface patching using hot plant mixed asphalt | H136: 20 | J136: 0
B137: 1 | C137: 0102 | D137: 77 | E137: C1.2.3.10 PS.12.1 | F137: kl | G137: Watering of temporary gravel deviations and existing roads used as detours | H137: 5 | J137: 0
B138: 1 | C138: 0102 | D138: 78 | E138: C1.2.3.11 PS.12.1 | F138: PC Sum | G138: Other road maintenance work ordered by the Engineer | H138: 50,000 | I138: 1 | J138: R50,000.00
B139: 1 | C139: 0102 | D139: 79 | E139: C1.2.3.12 PS.12.1 | F139: % | G139: Handling cost, profit and all other charges in respect of item C1.2.3.11 | H139: 50,000 | J139: =H139*I139/100 -> 0
G140: Dayworks
B141: 1 | C141: 0102 | D141: 80 | E141: C1.2.8.1(a) | F141: hour | G141: Personnel: (a) Unskilled labourer | H141: 30 | J141: =H141*I141 -> 0
B142: 1 | C142: 0102 | D142: 81 | E142: C1.2.8.1(b) | F142: hour | G142: (b) Semi-skilled labourer | H142: 10 | J142: 0
B143: 1 | C143: 0102 | D143: 82 | E143: C1.2.8.1 (c ) | F143: hour | G143: (c) Skilled labourer | H143: 10 | J143: 0
B144: 1 | C144: 0102 | D144: 83 | E144: C1.2.8.1(d) | F144: hour | G144: (d) Gang leader | H144: 10 | J144: 0
B145: 1 | C145: 0102 | D145: 84 | E145: C1.2.8.1 (e ) | F145: hour | G145: (e) Foreman | H145: 10 | J145: 0
B146: 1 | C146: 0102 | D146: 85 | E146: C1.2.8.2(a) | F146: hour | G146: Construction equipment : (a) Motor grader | H146: 15 | J146: 0
B147: 1 | C147: 0102 | D147: 86 | E147: C1.2.8.2(b) | F147: hour | G147: (b) Vibratory roller | H147: 15 | J147: 0
B148: 1 | C148: 0102 | D148: 87 | E148: C1.2.8.2 (c ) | F148: hour | G148: (c) Pneumatic roller | H148: 15 | J148: 0
B149: 1 | C149: 0102 | D149: 88 | E149: C1.2.8.2€ | F149: hour | G149: (e) Tractor loader backhoe | H149: 15 | J149: 0
B150: 1 | C150: 0102 | D150: 89 | E150: C1.2.8.2(f) | F150: hour | G150: (f) Excavator | H150: 15 | J150: 0
B151: 1 | C151: 0102 | D151: 90 | E151: C1.2.8.3(a) | F151: km | G151: Vehicles : (a) Light delivery vehicle | H151: 40 | J151: 0
B152: 1 | C152: 0102 | D152: 91 | E152: C1.2.8.3 (c ) | F152: km | G152: (c) Dump truck | H152: 40 | J152: 0
B153: 1 | C153: 0102 | D153: 92 | E153: C1.2.8.4(a) | F153: PC Sum | G153: Materials - Procurement of materials | H153: 100,000 | I153: 1 | J153: R100,000.00
B154: 1 | C154: 0102 | D154: 93 | E154: C1.2.8.4(b) | F154: % | G154: (b) Contractor's handling costs, profit and all other charges in respect of item C1.2.8.4(a) | H154: 100,000 | J154: =H154*I154/100 -> 0
G155: *********** NOTE ************* The following item (with a negative value) is to be included in the summation of item Amounts
B156: 1 | C156: 0102 | D156: 94 | E156: - | F156: PC Sum | G156: PC Sum reversal | H156: -216,250,000 | I156: 1 | J156: =H156*I156 -> -R216,250,000.00
B157: 1 | C157: 0105 | D157: C1.5 ACCOMMODATION OF TRAFFIC | H157: 20 | I157: Chapter Total: | J157: =SUM(J158:J189) -> 0
G158: Accommodation of pedestrian, non-motorised and motorised traffic
B159: 1 | C159: 0105 | D159: 1 | E159: C1.5.1.1 PS.1.3 | F159: PC Sum | G159: Where Work Package Order is <R1m | H159: 1,000,000 | I159: 1 | J159: =H159*I159 -> R1,000,000.00
B160: 1 | C160: 0105 | D160: 2 | E160: C1.5.1.1 PS.1.3 | F160: % | G160: Enter % of Work Package Order | H160: 1,000,000 | J160: =H160*I160/100 -> 0
B161: 1 | C161: 0105 | D161: 3 | E161: C1.5.1.1 PS.1.3 | F161: PC Sum | G161: Where Work Package Order is >R1m and <R3m | H161: 3,000,000 | I161: 1 | J161: =H161*I161 -> R3,000,000.00
B162: 1 | C162: 0105 | D162: 4 | E162: C1.5.1.1 PS.1.3 | F162: % | G162: Enter % of Work Package Order | H162: 3,000,000 | J162: =H162*I162/100 -> 0
B163: 1 | C163: 0105 | D163: 5 | E163: C1.5.1.1 PS.1.3 | F163: PC Sum | G163: Where Work Package Order is >R3m and <R6m | H163: 6,000,000 | I163: 1 | J163: =H163*I163 -> R6,000,000.00
B164: 1 | C164: 0105 | D164: 6 | E164: C1.5.1.1 PS.1.3 | F164: % | G164: Enter % of Work Package Order | H164: 6,000,000 | J164: =H164*I164/100 -> 0
B165: 1 | C165: 0105 | D165: 7 | E165: C1.5.1.1 PS.1.3 | F165: PC Sum | G165: Where Work Package Order is >R6m and <R10m | H165: 10,000,000 | I165: 1 | J165: =H165*I165 -> R10,000,000.00
B166: 1 | C166: 0105 | D166: 8 | E166: C1.5.1.1 PS.1.3 | F166: % | G166: Enter % of Work Package Order | H166: 10,000,000 | J166: =H166*I166/100 -> 0
B167: 1 | C167: 0105 | D167: 9 | E167: C1.5.1.1 PS.1.3 | F167: PC Sum | G167: Where Work Package Order is >R10m | H167: 20,000,000 | I167: 1 | J167: =H167*I167 -> R20,000,000.00
B168: 1 | C168: 0105 | D168: 10 | E168: C1.5.1.1 PS.1.3 | F168: % | G168: Enter % of Work Package Order | H168: 20,000,000 | J168: =H168*I168/100 -> 0
B169: 1 | C169: 0105 | D169: 11 | E169: C1.5.1.1 PS.1.3 | F169: man-day | G169: Traffic safety officer | H169: 100 | J169: =H169*I169 -> 0
G170: Traffic Safety Officer: Penalties
B171: 1 | C171: 0105 | D171: 12 | E171: A1.5.3.7 PS.1.3.7 | F171: RateOnly | G171: (a) Fixed Penalty per occurrence, R2000 per day | H171: 0
B172: 1 | C172: 0105 | D172: 13 | E172: A1.5.3.7 PS.1.3.7 | F172: RateOnly | G172: (b) Time-Related Penalty, R1000 per hour | H172: 0
B173: 1 | C173: 0105 | D173: 14 | E173: C1.5.7.1(b) | F173: no | G173: Delineators including mounting bases and ballast: Double sided, reversible left or right (1200mm x 250mm) | H173: 200 | J173: =H173*I173 -> 0
B174: 1 | C174: 0105 | D174: 15 | E174: PS.1.3.6 | F174: m | G174: Temporary barriers for accommodation of traffic, concrete New Jersey type, Contractor's own source | H174: 30 | J174: =H174*I174 -> 0
B175: 1 | C175: 0105 | D175: 16 | E175: C1.5.7.3 | F175: man-day | G175: Flagmen | H175: 100 | J175: =H175*I175 -> 0
B176: 1 | C176: 0105 | D176: 17 | E176: C1.5.7.4 | F176: man-day | G176: Traffic controllers | H176: 100 | J176: =H176*I176 -> 0
G177: Provision of Illuminated Traffic Signs
B178: 1 | C178: 0105 | D178: 18 | E178: C1.5.7.5(a)(i) | F178: no | G178: Sign mounted flashing amber lights (2 lights with the specified power supply) mounted on a backing board which is: (a)(i) 900 mm wide x 150 mm high | H178: 6 | J178: =H178*I178 -> 0
B179: 1 | C179: 0105 | D179: 19 | E179: C1.5.7.5(b) | F179: no | G179: (b) Flashing LED illuminated arrow board | H179: 6 | J179: 0
G180: Maintenance of Illuminated Traffic Signs | J180: 0
B181: 1 | C181: 0105 | D181: 20 | E181: C1.5.7.6(a) | F181: no | G181: (a) Sign mounted flashing amber lights (i and ii) | H181: 2 | J181: 0
B182: 1 | C182: 0105 | D182: 21 | E182: C1.5.7.6(b) | F182: no | G182: (b) Flashing LED illuminated arrow board | H182: 2 | J182: 0
B183: 1 | C183: 0105 | D183: 22 | E183: C1.5.7.6 (c ) | F183: no | G183: (c) Illuminated road sign – R & TR series (1200mm diameter) | H183: 2 | J183: 0
B184: 1 | C184: 0105 | D184: 23 | E184: C1.5.7.6(d) | F184: no | G184: (d) Illuminated road sign – TW series (1200mm sides) | H184: 2 | J184: 0
B185: 1 | C185: 0105 | D185: 24 | E185: C1.5.7.9 | F185: no | G185: Cleaning of traffic control facilities | H185: 2 | J185: 0
G186: Traffic Calming Devices
B187: 1 | C187: 0105 | D187: 25 | E187: C1.5.7.7(a) | F187: m | G187: (a) 25 mm high x 100 mm wide asphalt rumble strips | H187: 50 | J187: =H187*I187 -> 0
G188: ************ NOTE ************* The following item (with a negative value) is to be included in the summation of item Amounts
B189: 1 | C189: 0105 | D189: 26 | E189: - | F189: PC Sum | G189: PC Sum reversal | H189: -40,000,000 | I189: 1 | J189: =H189*I189 -> -R40,000,000.00
B190: 2 | C190: SITE CLEARANCE | I190: SECTION TOTAL: | J190: =J191 -> 0
B191: 2 | C191: 0106 | D191: C1.6 CLEARING AND GRUBBING | H191: 13 | I191: Chapter Total: | J191: =SUM(J192:J209) -> 0
G192: Clearing
B193: 2 | C193: 0106 | D193: 1 | E193: C1.6.1.1 | F193: m2 | G193: Clearing with machines and some hand labour where necessary | H193: 2,000 | J193: =H193*I193 -> 0
B194: 2 | C194: 0106 | D194: 2 | E194: C1.6.1.2 | F194: m2 | G194: Clearing with hand labour only when labour enhanced work is specified | H194: 2,000 | J194: =H194*I194 -> 0
G195: Grubbing
B196: 2 | C196: 0106 | D196: 3 | E196: C1.6.2.1 | F196: m2 | G196: Grubbing with machines and some hand labour where necessary | H196: 2,000 | J196: =H196*I196 -> 0
B197: 2 | C197: 0106 | D197: 4 | E197: C1.6.2.2 | F197: m2 | G197: Grubbing with hand labour when labour enhancement work is specified or it is not practical to use a machine | H197: 2,000 | J197: =H197*I197 -> 0
G198: Removal and Grubbing of Large Trees and Tree Stumps
B199: 2 | C199: 0106 | D199: 5 | E199: C1.6.3.1 | F199: no | G199: Girth equal to or exceeding 1,0 m up to and including 2,0 m | H199: 5 | J199: =H199*I199 -> 0
B200: 2 | C200: 0106 | D200: 6 | E200: C1.6.3.2 | F200: no | G200: Girth exceeding 2,0 m up to and including 3,0 m | H200: 3 | J200: =H200*I200 -> 0
G201: Stockpile Site
B202: 2 | C202: 0106 | D202: 7 | E202: C4.1.10 | F202: m3 | G202: Compacting the floor of the stockpile sites | H202: 20 | J202: =H202*I202 -> 0
B203: 2 | C203: 0106 | D203: 8 | E203: C4.1.15.2(c) | F203: m3 | G203: Finishing of the stockpile sites | H203: 20 | J203: =H203*I203 -> 0
B204: 2 | C204: 0106 | D204: 9 | E204: C1.6.9.1 | F204: m3 | G204: Conservation of topsoil: Stockpiling topsoil | H204: 200 | J204: =H204*I204 -> 0
B205: 2 | C205: 0106 | D205: 10 | E205: C1.6.9.2 | F205: m3 | G205: Windrowing topsoil | H205: 200 | J205: =H205*I205 -> 0
G206: Hauling Material
B207: 2 | C207: 0106 | D207: 11 | E207: C1.7.2.1(a) PS.C1.7 | F207: m3 | G207: Hauling material for use in the Works and off-loading it on the site of the Works: (a) Soil, gravel, crushed stone and pavement layer material | H207: 5,000 | J207: =H207*I207 -> 0
B208: 2 | C208: 0106 | D208: 12 | E208: C1.7.2.2(a) PS.C1.7 | F208: m3 | G208: Hauling material to spoil and off-loading it at a designated spoil area: (a) Cleared and grubbed material (organic matter and all other unsuitable or waste material) | H208: 3,000 | J208: =H208*I208 -> 0
B209: 2 | C209: 0106 | D209: 13 | E209: C1.7.2.2(b) PS.C1.7 | F209: m3 | G209: (b) Soil and gravel material | H209: 1,000 | J209: =H209*I209 -> 0
B210: 3 | C210: SERVICES | I210: SECTION TOTAL: | J210: =J211 -> R1,160,000.00
B211: 3 | C211: 0201 | D211: C2.1 GEN REQMENTS AND TRENCHING SERVICE | H211: 10 | I211: Chapter Total: | J211: =SUM(J212:J239) -> R1,160,000.00
G212: Relocation of Services by Others: Water
... 285 more rows
